[Event "Fagernes Chess GM-Swiss 2024"]
[Site "Fagernes"]
[Date "2024.03.27"]
[Round "4.28"]
[White "Dushyant Sharma"]
[Black "Shivika Rohilla"]
[Result "1/2-1/2"]
[ECO "B45"]
[WhiteElo "2331"]
[BlackElo "2003"]
[Annotator "RC"]
[PlyCount "66"]
[EventDate "2024.03.25"]
[EventType "swiss"]
[EventCountry "NOR"]
[SourceTitle "playchess.com"]
[Source "ChessBase"]
[SourceQuality "1"]
[TimeControl "40/6000+30:2400+30"]

1. e4 {[%emt 0:24:29]} c5 {[%emt 0:01:19]} 2. Nf3 {[%emt 0:00:49]} e6 {[%emt 0:00:07]} 3. d4 {[%emt 0:00:24]} cxd4 {[%emt 0:00:06]} 4. Nxd4 {[%emt 0:00:04]} Nf6 {[%emt 0:00:06]} 5. Nc3 {[%emt 0:00:06]} Nc6 {[%emt 0:00:05]} 6. Bc4 {[%emt 0:01:25]} d5 {[%emt 0:13:08]} 7. exd5 {[%emt 0:02:45]} exd5 {[%emt 0:00:06]} 8. Bb5 {[%emt 0:01:32]} Bd7 {[%emt 0:00:07]} 9. O-O {[%emt 0:02:33]} Be7 {[%emt 0:00:22]} 10. Bg5 {[%emt 0:01:56]} O-O {[%emt 0:00:25]} 11. Re1 {[%emt 0:00:06]} h6 {[%emt 0:07:22]} 12. Bh4 {[%emt 0:02:11]} Rc8 {[%emt 0:01:43]} 13. Bf1 {[%emt 0:07:02]} Re8 {[%emt 0:06:51]} 14. Qd3 {[%emt 0:13:34]} Nb4 {[%emt 0:17:09]} 15. Qf3 {[%emt 0:05:14]} g5 {[%emt 0:08:16]} 16. Qg3 {[%emt 0:25:23]} Nh5 {[%emt 0:05:16]} 17. Qf3 {[%emt 0:00:48]} Nf6 {[%emt 0:00:54]} 18. Qg3 {[%emt 0:04:13]} Kh8 {[%emt 0:05:19]} 19. Bxg5 {[%emt 0:01:12]} hxg5 {[%emt 0:01:46]} 20. Qxg5 {[%emt 0:00:19]} Nh7 {[%emt 0:00:24]} 21. Qf4 {[%emt 0:03:03]} Bf6 {[%emt 0:05:09]} 22. Ncb5 {[%emt 0:06:50]} Bxb5 {[%emt 0:09:32]} 23. Nxb5 {[%emt 0:00:48]} Rxe1 {[%emt 0:00:12]} 24. Rxe1 {[%emt 0:00:09]} d4 {[%emt 0:00:13]} 25. Nd6 {[%emt 0:01:10]} Qc7 {[%emt 0:03:22]} 26. Qf5 {[%emt 0:00:31]} Rd8 {[%emt 0:07:52]} 27. a3 {[%emt 0:00:30]} Qxd6 {[%emt 0:01:17]} 28. axb4 {[%emt 0:00:12]} Qd5 {[%emt 0:00:38]} 29. Qh3 {[%emt 0:00:39]} Qd7 {[%emt 0:01:01]} 30. Qh5 {[%emt 0:00:44]} Qd5 {[%emt 0:00:15]} 31. Qh3 {[%emt 0:00:17]} Qd7 {[%emt 0:00:05]} 32. Qh5 {[%emt 0:00:34]} Qd5 {[%emt 0:00:32]} 33. Qh3 {[%emt 0:00:17]} Qd7 {[%emt 0:00:06]} 1/2-1/2

[Event "Fagernes Chess GM-Swiss 2024"]
[Site "Fagernes"]
[Date "2024.03.27"]
[Round "4.29"]
[White "Anishka Vikram"]
[Black "Nordahl, Helge"]
[Result "1/2-1/2"]
[ECO "D31"]
[WhiteElo "1995"]
[BlackElo "2330"]
[Annotator "RC"]
[PlyCount "76"]
[EventDate "2024.03.25"]
[EventType "swiss"]
[EventCountry "NOR"]
[SourceTitle "playchess.com"]
[Source "ChessBase"]
[SourceQuality "1"]
[TimeControl "40/6000+30:2400+30"]

1. d4 {[%emt 0:00:05]} d5 {[%emt 0:00:14]} 2. c4 {[%emt 0:00:16]} e6 {[%emt 0:00:03]} 3. Nc3 {[%emt 0:00:16]} c6 {[%emt 0:00:04]} 4. Nf3 {[%emt 0:03:19]} dxc4 {[%emt 0:00:20]} 5. a4 {[%emt 0:04:18]} Bb4 {[%emt 0:00:38]} 6. e3 {[%emt 0:02:06]} b5 {[%emt 0:00:14]} 7. Bd2 {[%emt 0:07:04]} a5 {[%emt 0:01:03]} 8. Ne5 {[%emt 0:23:21]} Nf6 {[%emt 0:11:41]} 9. Qf3 {[%emt 0:06:01]} Ra7 {[%emt 0:08:29]} 10. Nxc6 {[%emt 0:07:20]} Nxc6 {[%emt 0:01:22]} 11. Qxc6+ {[%emt 0:00:06]} Bd7 {[%emt 0:00:53]} 12. Qf3 {[%emt 0:00:12]} Bxc3 {[%emt 0:01:00]} 13. bxc3 {[%emt 0:02:27]} Qb6 {[%emt 0:07:23]} 14. Rb1 {[%emt 0:11:25]} Bc6 {[%emt 0:02:59]} 15. Qd1 {[%emt 0:04:03]} O-O {[%emt 0:07:11]} 16. axb5 {[%emt 0:08:52]} Be4 {[%emt 0:01:08]} 17. Rb2 {[%emt 0:00:54]} a4 {[%emt 0:05:12]} 18. f3 {[%emt 0:01:54]} a3 {[%emt 0:00:11]} 19. Ra2 {[%emt 0:01:06]} Qxb5 {[%emt 0:06:28]} 20. fxe4 {[%emt 0:01:53]} Qb3 {[%emt 0:00:34]} 21. Qa1 {[%emt 0:05:51]} Rb8 {[%emt 0:02:54]} 22. Bc1 {[%emt 0:10:03]} Nxe4 {[%emt 0:14:52]} 23. Rxa3 {[%emt 0:01:17]} Rxa3 {[%emt 0:01:16]} 24. Qxa3 {[%emt 0:00:10]} Nxc3 {[%emt 0:00:11]} 25. Qxb3 {[%emt 0:06:47]} cxb3 {[%emt 0:00:37]} 26. Bd3 {[%emt 0:00:56]} b2 {[%emt 0:00:10]} 27. Bxb2 {[%emt 0:00:12]} Rxb2 {[%emt 0:00:04]} 28. O-O {[%emt 0:00:15]} g6 {[%emt 0:01:17]} 29. Rf2 {[%emt 0:01:15]} Rb3 {[%emt 0:01:27]} 30. Bc2 {[%emt 0:00:49]} Ra3 {[%emt 0:01:07]} 31. Rd2 {[%emt 0:00:46]} Ra2 {[%emt 0:00:57]} 32. Kf1 {[%emt 0:00:25]} Kg7 {[%emt 0:02:46]} 33. Ke1 {[%emt 0:00:22]} f5 {[%emt 0:00:56]} 34. Bd3 {[%emt 0:00:32]} Ra3 {[%emt 0:01:08]} 35. Kf2 {[%emt 0:00:39]} Nd5 {[%emt 0:00:25]} 36. Ke2 {[%emt 0:00:35]} f4 {[%emt 0:00:49]} 37. exf4 {[%emt 0:00:31]} Nxf4+ {[%emt 0:00:05]} 38. Ke3 {[%emt 0:00:04]} Nxd3 {[%emt 0:00:20]} 1/2-1/2

[Event "Fagernes Chess GM-Swiss 2024"]
[Site "Fagernes"]
[Date "2024.03.27"]
[Round "4.30"]
[White "Gasland, Lukas Dominik"]
[Black "Hedman, Erik"]
[Result "0-1"]
[ECO "E12"]
[WhiteElo "1985"]
[BlackElo "2311"]
[Annotator "RC"]
[PlyCount "72"]
[EventDate "2024.03.25"]
[EventType "swiss"]
[EventCountry "NOR"]
[SourceTitle "playchess.com"]
[Source "ChessBase"]
[SourceQuality "1"]
[TimeControl "40/6000+30:2400+30"]

1. d4 {[%emt 0:01:10]} Nf6 {[%emt 0:00:05]} 2. c4 {[%emt 0:00:11]} e6 {[%emt 0:00:03]} 3. Nf3 {[%emt 0:00:09]} b6 {[%emt 0:00:05]} 4. a3 {[%emt 0:01:04]} Bb7 {[%emt 0:00:25]} 5. Nc3 {[%emt 0:00:09]} d5 {[%emt 0:00:05]} 6. g3 {[%emt 0:02:09]} dxc4 {[%emt 0:02:03]} 7. Qa4+ {[%emt 0:06:46]} Nbd7 {[%emt 0:00:52]} 8. Bg2 {[%emt 0:01:27]} a6 {[%emt 0:00:09]} 9. Qxc4 {[%emt 0:00:55]} b5 {[%emt 0:01:58]} 10. Qd3 {[%emt 0:03:40]} c5 {[%emt 0:00:06]} 11. O-O {[%emt 0:04:13]} Be7 {[%emt 0:05:52]} 12. Rd1 {[%emt 0:02:59]} O-O {[%emt 0:01:08]} 13. dxc5 {[%emt 0:12:57]} Nxc5 {[%emt 0:01:47]} 14. Qc2 {[%emt 0:00:06]} Qc8 {[%emt 0:02:55]} 15. Bf4 {[%emt 0:03:26]} Na4 {[%emt 0:15:26]} 16. Rac1 {[%emt 0:03:12]} Nxc3 {[%emt 0:00:03]} 17. Qxc3 {[%emt 0:00:07]} Qxc3 {[%emt 0:00:06]} 18. Rxc3 {[%emt 0:00:07]} Rfc8 {[%emt 0:00:59]} 19. Rc7 {[%emt 0:06:47]} Rxc7 {[%emt 0:01:11]} 20. Bxc7 {[%emt 0:00:07]} Rc8 {[%emt 0:03:28]} 21. Ba5 {[%emt 0:06:52]} Bd5 {[%emt 0:00:14]} 22. Nd4 {[%emt 0:01:00]} Kf8 {[%emt 0:02:13]} 23. Bxd5 {[%emt 0:03:37]} Nxd5 {[%emt 0:00:10]} 24. Kg2 {[%emt 0:00:11]} h5 {[%emt 0:06:09]} 25. Nf5 {[%emt 0:08:39]} Bd8 {[%emt 0:14:17]} 26. Nd6 {[%emt 0:08:12]} Rc6 {[%emt 0:03:04]} 27. Nb7 {[%emt 0:03:22]} Bxa5 {[%emt 0:00:19]} 28. Nxa5 {[%emt 0:00:06]} Rc2 {[%emt 0:00:10]} 29. Kf3 {[%emt 0:00:38]} f5 {[%emt 0:02:20]} 30. b4 {[%emt 0:01:46]} g5 {[%emt 0:00:32]} 31. Nb3 {[%emt 0:01:37]} g4+ {[%emt 0:00:31]} 32. Kg2 {[%emt 0:00:06]} Rxe2 {[%emt 0:00:56]} 33. Kf1 {[%emt 0:01:42]} Ra2 {[%emt 0:01:18]} 34. Nc5 {[%emt 0:00:11]} Kf7 {[%emt 0:07:25]} 35. Rd3 {[%emt 0:00:58]} f4 {[%emt 0:01:59]} 36. gxf4 {[%emt 0:05:24]} Ra1+ {[%emt 0:00:11]} 0-1

[Event "Fagernes Chess GM-Swiss 2024"]
[Site "Fagernes"]
[Date "2024.03.27"]
[Round "4.31"]
[White "Stark, John"]
[Black "Shehzad, Shazil"]
[Result "1-0"]
[ECO "A13"]
[WhiteElo "1947"]
[BlackElo "2301"]
[Annotator "RC"]
[PlyCount "67"]
[EventDate "2024.03.25"]
[EventType "swiss"]
[EventCountry "NOR"]
[SourceTitle "playchess.com"]
[Source "ChessBase"]
[SourceQuality "1"]
[TimeControl "40/6000+30:2400+30"]

1. Nf3 {[%emt 0:01:17]} Nf6 {[%emt 0:01:23]} 2. g3 {[%emt 0:00:55]} d5 {[%emt 0:00:17]} 3. Bg2 {[%emt 0:00:06]} e6 {[%emt 0:00:55]} 4. O-O {[%emt 0:02:04]} c5 {[%emt 0:01:47]} 5. c4 {[%emt 0:00:15]} d4 {[%emt 0:00:14]} 6. e3 {[%emt 0:00:16]} Nc6 {[%emt 0:00:02]} 7. exd4 {[%emt 0:00:08]} cxd4 {[%emt 0:00:02]} 8. d3 {[%emt 0:00:15]} Bd6 {[%emt 0:00:02]} 9. Bg5 {[%emt 0:00:14]} h6 {[%emt 0:00:06]} 10. Bxf6 {[%emt 0:00:06]} Qxf6 {[%emt 0:00:03]} 11. Nbd2 {[%emt 0:00:05]} Qd8 {[%emt 0:00:21]} 12. a3 {[%emt 0:06:54]} a5 {[%emt 0:00:14]} 13. Ne4 {[%emt 0:08:52]} Be7 {[%emt 0:00:39]} 14. b4 {[%emt 0:22:03]} axb4 {[%emt 0:04:42]} 15. axb4 {[%emt 0:00:06]} Rxa1 {[%emt 0:00:10]} 16. Qxa1 {[%emt 0:00:03]} Bxb4 {[%emt 0:01:45]} 17. Rb1 {[%emt 0:03:33]} f5 {[%emt 0:05:07]} 18. Ned2 {[%emt 0:04:10]} O-O {[%emt 0:04:12]} 19. Qa4 {[%emt 0:04:11]} Bc3 {[%emt 0:08:18]} 20. Nb3 {[%emt 0:04:42]} e5 {[%emt 0:01:56]} 21. Nh4 {[%emt 0:05:41]} Qd6 {[%emt 0:03:31]} 22. Qb5 {[%emt 0:04:31]} g5 {[%emt 0:12:15]} 23. Bd5+ {[%emt 0:09:59]} Kg7 {[%emt 0:15:20]} 24. Nf3 {[%emt 0:06:11]} Re8 {[%emt 0:10:23]} 25. Nc5 {[%emt 0:05:42]} Re7 {[%emt 0:01:30]} 26. Qb6 {[%emt 0:02:38]} Rc7 {[%emt 0:15:17]} 27. Rb5 {[%emt 0:03:18]} Qe7 {[%emt 0:06:28]} 28. Na4 {[%emt 0:08:59]} g4 {[%emt 0:08:17]} 29. Nh4 {[%emt 0:02:36]} Bd2 {[%emt 0:02:10]} 30. Nc5 {[%emt 0:00:26]} Bg5 {[%emt 0:01:01]} 31. Be6 {[%emt 0:00:46]} Bxh4 {[%emt 0:01:05]} 32. Bxc8 {[%emt 0:01:53]} Rxc8 {[%emt 0:00:20]} 33. gxh4 {[%emt 0:00:33]} Rc7 {[%emt 0:00:54]} 34. Qxc7 {[%emt 0:00:21]} 1-0

[Event "Fagernes Chess GM-Swiss 2024"]
[Site "Fagernes"]
[Date "2024.03.27"]
[Round "4.32"]
[White "Aamodt, Peder Marcus"]
[Black "Daakshin Arun"]
[Result "1/2-1/2"]
[ECO "B96"]
[WhiteElo "1941"]
[BlackElo "2283"]
[Annotator "RC"]
[PlyCount "102"]
[EventDate "2024.03.25"]
[EventType "swiss"]
[EventCountry "NOR"]
[SourceTitle "playchess.com"]
[Source "ChessBase"]
[SourceQuality "1"]
[TimeControl "40/6000+30:2400+30"]

1. e4 {[%emt 0:10:14]} c5 {[%emt 0:00:12]} 2. Nf3 {[%emt 0:00:09]} d6 {[%emt 0:00:04]} 3. d4 {[%emt 0:00:30]} cxd4 {[%emt 0:00:06]} 4. Nxd4 {[%emt 0:00:07]} Nf6 {[%emt 0:00:05]} 5. Nc3 {[%emt 0:00:04]} a6 {[%emt 0:00:05]} 6. Bg5 {[%emt 0:00:15]} e6 {[%emt 0:01:01]} 7. f4 {[%emt 0:00:14]} h6 {[%emt 0:02:18]} 8. Bh4 {[%emt 0:00:17]} Nbd7 {[%emt 0:00:27]} 9. Qe2 {[%emt 0:00:43]} e5 {[%emt 0:01:09]} 10. fxe5 {[%emt 0:03:51]} Nxe5 {[%emt 0:00:06]} 11. Bxf6 {[%emt 0:00:14]} Qxf6 {[%emt 0:00:21]} 12. Nd5 {[%emt 0:00:32]} Qd8 {[%emt 0:00:31]} 13. O-O-O {[%emt 0:10:14]} g6 {[%emt 0:02:21]} 14. Qf2 {[%emt 0:11:13]} Bg7 {[%emt 0:04:49]} 15. Be2 {[%emt 0:02:20]} O-O {[%emt 0:06:30]} 16. Rhf1 {[%emt 0:12:49]} Be6 {[%emt 0:10:43]} 17. Kb1 {[%emt 0:05:40]} Rc8 {[%emt 0:04:36]} 18. Qg3 {[%emt 0:03:41]} Bxd5 {[%emt 0:06:47]} 19. exd5 {[%emt 0:00:59]} Re8 {[%emt 0:05:23]} 20. h4 {[%emt 0:08:39]} h5 {[%emt 0:14:44]} 21. Qf4 {[%emt 0:10:00]} Qd7 {[%emt 0:05:36]} 22. g4 {[%emt 0:03:57]} Nxg4 {[%emt 0:05:33]} 23. Bxg4 {[%emt 0:01:48]} hxg4 {[%emt 0:00:17]} 24. h5 {[%emt 0:02:22]} Rc4 {[%emt 0:05:03]} 25. hxg6 {[%emt 0:07:59]} fxg6 {[%emt 0:01:17]} 26. Rh1 {[%emt 0:00:51]} Rxd4 {[%emt 0:05:07]} 27. Rxd4 {[%emt 0:00:46]} Bxd4 {[%emt 0:00:05]} 28. Qxd4 {[%emt 0:00:11]} Re5 {[%emt 0:00:10]} 29. a3 {[%emt 0:02:16]} Qf5 {[%emt 0:07:26]} 30. Qb6 {[%emt 0:01:48]} Qd7 {[%emt 0:00:54]} 31. Qd4 {[%emt 0:02:43]} g3 {[%emt 0:01:19]} 32. Rg1 {[%emt 0:05:51]} Qh3 {[%emt 0:01:42]} 33. Qd3 {[%emt 0:00:20]} Kg7 {[%emt 0:01:34]} 34. b3 {[%emt 0:02:55]} g5 {[%emt 0:06:57]} 35. Rxg3 {[%emt 0:00:54]} Qh1+ {[%emt 0:00:14]} 36. Kb2 {[%emt 0:00:12]} Qxd5 {[%emt 0:00:25]} 37. Qc3 {[%emt 0:00:12]} Kg6 {[%emt 0:01:16]} 38. Qc8 {[%emt 0:00:17]} Re7 {[%emt 0:01:12]} 39. Rd3 {[%emt 0:00:35]} Qe6 {[%emt 0:01:09]} 40. Qd8 {[%emt 0:00:58]} Rd7 {[%emt 0:02:01]} 41. Qc8 {[%emt 0:01:08]} d5 {[%emt 0:02:19]} 42. Ka2 {[%emt 0:02:33]} Qf7 {[%emt 0:05:15]} 43. Qc3 {[%emt 0:04:21]} Rc7 {[%emt 0:05:16]} 44. Qd2 {[%emt 0:01:08]} Qf4 {[%emt 0:00:39]} 45. Qe2 {[%emt 0:03:48]} Qe4 {[%emt 0:00:50]} 46. Qh2 {[%emt 0:00:44]} Rc6 {[%emt 0:00:31]} 47. Kb1 {[%emt 0:00:39]} Rf6 {[%emt 0:04:30]} 48. Qh8 {[%emt 0:02:17]} Rf1+ {[%emt 0:13:49]} 49. Ka2 {[%emt 0:01:29]} Rf7 {[%emt 0:02:07]} 50. Qg8+ {[%emt 0:01:11]} Rg7 {[%emt 0:00:12]} 51. Qd8 {[%emt 0:00:58]} Qf5 {[%emt 0:06:33]} 1/2-1/2

[Event "Fagernes Chess GM-Swiss 2024"]
[Site "Fagernes"]
[Date "2024.03.27"]
[Round "4.33"]
[White "Brynell, Stellan"]
[Black "Evenshaug, Amadeus Hestvik"]
[Result "1-0"]
[ECO "D38"]
[WhiteElo "2406"]
[BlackElo "2035"]
[Annotator "TA"]
[PlyCount "103"]
[EventDate "2024.03.25"]
[EventType "swiss"]
[EventCountry "NOR"]
[SourceTitle "playchess.com"]
[Source "ChessBase"]
[SourceQuality "1"]
[TimeControl "40/6000+30:2400+30"]

{[%evp 14,103,30,33,50,35,29,35,27,31,32,45,72,69,75,81,120,11,27,25,79,31,35,40,36,11,20,18,30,37,38,41,40,41,41,30,29,33,10,22,26,20,18,15,20,25,22,22,27,6,37,27,20,27,20,20,20,0,20,20,20,20,20,20,22,22,27,0,8,0,20,15,16,17,97,37,102,102,104,53,40,45,52,52,52,52,370,371,475,464,1350,1289]} 1. d4 {[%emt 0:00:36]} Nf6 {[%emt 0:00:18]} 2. Nf3 {[%emt 0:00:06]} d5 {[%emt 0:00:23]} 3. c4 {[%emt 0:00:09]} e6 {[%emt 0:00:22]} 4. Nc3 {[%emt 0:00:38]} Bb4 {[%emt 0:03:23]} 5. Bg5 {[%emt 0:00:52]} O-O {[%emt 0:01:50]} 6. e3 {[%emt 0:00:45]} Nbd7 {[%emt 0:01:49]} 7. cxd5 {[%emt 0:04:05]} exd5 {[%emt 0:00:07]} 8. Bd3 {[%emt 0:00:13]} Re8 {[%emt 0:02:48]} 9. O-O {[%emt 0:02:34] And now Nxd5 would win.} c6 {[%emt 0:01:54]} 10. Qc2 {[%emt 0:03:09][%cal Od3h7] Hoping for Bxh7+!} Nf8 {[%emt 0:02:12] White is slightly better.} 11. Ne5 {[%emt 0:12:08]} h6 {[%emt 0:08:13]} 12. Bh4 {[%emt 0:01:40]} g5 {[%emt 0:18:01]} 13. Bg3 {[%emt 0:00:20] White is more active.} Nh5 {[%emt 0:11:07]} 14. Ne2 {[%emt 0:08:49]} Bd6 {[%emt 0:13:23]} 15. Nf3 {[%emt 0:05:26]} (15. f4 $16) 15... Nxg3 $11 {[%emt 0:01:00]} 16. Nxg3 {[%emt 0:00:26]} Bxg3 {[%emt 0:00:13]} (16... Bg4 $11) 17. hxg3 {[%emt 0:00:25]} (17. fxg3 $16 Qe7 18. Rf2) 17... Qd6 $14 {[%emt 0:09:54]} 18. Rab1 {[%emt 0:06:01]} a5 {[%emt 0:01:51]} 19. Rfd1 {[%emt 0:12:23]} Bg4 {[%emt 0:02:47]} 20. Re1 {[%emt 0:02:04]} Bh5 {[%emt 0:01:48]} 21. Ne5 {[%emt 0:09:45]} Kg7 {[%emt 0:06:27]} 22. a3 {[%emt 0:02:54]} f6 {[%emt 0:05:53]} 23. Nf3 {[%emt 0:00:36]} Bg6 {[%emt 0:01:31]} 24. b4 {[%emt 0:06:27]} axb4 {[%emt 0:01:17]} 25. axb4 {[%emt 0:00:17]} Bxd3 {[%emt 0:01:52]} 26. Qxd3 {[%emt 0:00:05]} b5 {[%emt 0:04:20]} 27. Rec1 {[%emt 0:00:33]} Nd7 {[%emt 0:00:26]} 28. Qc3 {[%emt 0:00:50]} Rec8 {[%emt 0:00:16]} 29. Ra1 {[%emt 0:01:17]} Rxa1 {[%emt 0:00:09]} 30. Rxa1 {[%emt 0:00:47]} Nb6 {[%emt 0:00:15]} 31. Ne1 {[%emt 0:04:35]} (31. Qc5 {keeps more tension.} Nc4 32. Ra7+ Kg6 33. g4) 31... Ra8 {[%emt 0:03:51]} 32. Rxa8 {[%emt 0:03:12]} Nxa8 {[%emt 0:00:04][%mdl 4096] Endgame. KQN-KQN} 33. Qa3 {[%emt 0:00:09]} Qb8 {[%emt 0:00:58]} 34. Qa6 {[%emt 0:01:49]} Nb6 {[%emt 0:00:04]} 35. Nd3 {[%emt 0:00:12]} Qc7 {[%emt 0:01:33]} 36. Nc5 {[%emt 0:01:31] Ne6+ would kill now.} Kg6 {[%emt 0:01:29]} 37. g4 {[%emt 0:02:39]} h5 {[%emt 0:00:47]} 38. gxh5+ {[%emt 0:01:45]} Kxh5 {[%emt 0:00:05]} 39. Qa1 {[%emt 0:00:42]} Kh6 {[%emt 0:01:28]} 40. Qd1 {[%emt 0:06:49]} Nd7 {[%emt 0:01:19]} 41. Nd3 {[%emt 0:41:34]} Qd6 {[%emt 0:05:49]} 42. Qg4 {[%emt 0:00:00]} Qe7 {[%emt 0:00:59]} 43. Kf1 {[%emt 0:00:00]} Qd6 {[%emt 0:05:59]} (43... Kg6 $11 {keeps the balance.}) 44. Qf5 {[%emt 0:00:00]} ({Better is} 44. Ke2 $16) 44... Qe7 {[%emt 0:02:02]} (44... Kg7 $14) 45. Ke2 $16 {[%emt 0:00:00]} Qd6 {[%emt 0:00:54]} 46. Qg4 {[%emt 0:00:00]} (46. f4 $16) 46... Qe7 $1 $14 {[%emt 0:00:33]} 47. Qg3 {[%emt 0:00:00]} Nf8 {[%emt 0:04:52]} 48. Nc5 {[%emt 0:00:00]} Kg7 {[%emt 0:03:37]} 49. Qg4 {[%emt 0:00:00] Inhibits Ne6.} Qc7 $2 {[%emt 0:01:52][%mdl 8192] [#] Inhibits Qc8.} ({Black should play} 49... Kf7 $14) 50. Qe6 $3 $18 {[%emt 0:00:00][%mdl 512]} Kg6 {[%emt 0:08:46]} (50... Qh2 51. Qe7+) 51. Qe8+ {[%emt 0:00:00]} Kg7 {[%emt 0:00:04] [#]} (51... Qf7 $142 52. Qxc6 g4 53. Qxb5 Kh7) 52. Qxf8+ $3 {[%emt 0:00:00][%mdl 512] Weighted Error Value: White=0.12 (very precise) /Black=0.24 (precise) .  Loses game:     	---       	Black=1      Mistake:       	White=4     	Black=4      Inaccurate:     	White=1     	Black=3      OK:         	White=16    	Black=17     Best:        	White=1     	Black=2      Strong:       	---       	Black=1      Brilliant:      	White=2     	---} 1-0

[Event "Fagernes Chess GM-Swiss 2024"]
[Site "Fagernes"]
[Date "2024.03.27"]
[Round "4.34"]
[White "Sian, Shadi"]
[Black "Lindh, Fredrik"]
[Result "1/2-1/2"]
[ECO "D13"]
[WhiteElo "2076"]
[BlackElo "2256"]
[Annotator "RC"]
[PlyCount "55"]
[EventDate "2024.03.25"]
[EventType "swiss"]
[EventCountry "NOR"]
[SourceTitle "playchess.com"]
[Source "ChessBase"]
[SourceQuality "1"]
[TimeControl "40/6000+30:2400+30"]

1. d4 {[%emt 0:00:38]} d5 {[%emt 0:00:06]} 2. c4 {[%emt 0:00:05]} c6 {[%emt 0:00:03]} 3. cxd5 {[%emt 0:00:08]} cxd5 {[%emt 0:00:06]} 4. Nc3 {[%emt 0:00:03]} Nf6 {[%emt 0:00:08]} 5. Nf3 {[%emt 0:00:04]} Nc6 {[%emt 0:00:06]} 6. Bf4 {[%emt 0:00:06]} Ne4 {[%emt 0:00:06]} 7. Nd2 {[%emt 0:33:45]} Nxc3 {[%emt 0:24:06]} 8. bxc3 {[%emt 0:00:04]} Bf5 {[%emt 0:00:15]} 9. f3 {[%emt 0:12:30]} e5 {[%emt 0:32:05]} 10. Bxe5 {[%emt 0:09:08]} Nxe5 {[%emt 0:04:38]} 11. dxe5 {[%emt 0:00:02]} Bc5 {[%emt 0:03:00]} 12. e4 {[%emt 0:03:02]} Qb6 {[%emt 0:11:47]} 13. Qe2 {[%emt 0:20:04]} dxe4 {[%emt 0:04:15]} 14. Qb5+ {[%emt 0:00:42]} Ke7 {[%emt 0:01:45]} 15. Nxe4 {[%emt 0:01:03]} Bxe4 {[%emt 0:01:45]} 16. Qxb6 {[%emt 0:00:24]} Bxb6 {[%emt 0:00:54]} 17. fxe4 {[%emt 0:00:06]} Rac8 {[%emt 0:01:19]} 18. c4 {[%emt 0:05:57]} Rhd8 {[%emt 0:01:07]} 19. Rb1 {[%emt 0:06:42]} Rd4 {[%emt 0:02:28]} 20. Rb5 {[%emt 0:00:10]} Rxe4+ {[%emt 0:02:43]} 21. Kd2 {[%emt 0:01:47]} Rd8+ {[%emt 0:07:09]} 22. Kc2 {[%emt 0:03:07]} Re1 {[%emt 0:03:03]} 23. c5 {[%emt 0:00:58]} Rdd1 {[%emt 0:08:22]} 24. cxb6 {[%emt 0:00:07]} Rc1+ {[%emt 0:00:02]} 25. Kd2 {[%emt 0:01:38]} a6 {[%emt 0:00:18]} 26. Rc5 {[%emt 0:00:16]} Red1+ {[%emt 0:00:14]} 27. Ke2 {[%emt 0:00:09]} Re1+ {[%emt 0:00:06]} 28. Kd2 {[%emt 0:00:10]} 1/2-1/2

[Event "Fagernes Chess GM-Swiss 2024"]
[Site "Fagernes"]
[Date "2024.03.27"]
[Round "4.35"]
[White "Brattgjerd, Isak Vinh"]
[Black "Holand, Per Fredrik"]
[Result "0-1"]
[ECO "B30"]
[WhiteElo "2228"]
[BlackElo "2068"]
[Annotator "RC"]
[PlyCount "112"]
[EventDate "2024.03.25"]
[EventType "swiss"]
[EventCountry "NOR"]
[SourceTitle "playchess.com"]
[Source "ChessBase"]
[SourceQuality "1"]
[TimeControl "40/6000+30:2400+30"]

1. e4 {[%emt 0:04:23]} c5 {[%emt 0:07:16]} 2. Nf3 {[%emt 0:00:08]} Nc6 {[%emt 0:00:04]} 3. Nc3 {[%emt 0:00:39]} e5 {[%emt 0:00:22]} 4. Bc4 {[%emt 0:00:07]} Be7 {[%emt 0:00:07]} 5. d3 {[%emt 0:00:14]} d6 {[%emt 0:00:10]} 6. a3 {[%emt 0:00:07]} Nf6 {[%emt 0:00:14]} 7. O-O {[%emt 0:00:09]} O-O {[%emt 0:00:04]} 8. h3 {[%emt 0:00:24]} Rb8 {[%emt 0:00:24]} 9. Nh2 {[%emt 0:11:21]} Nd4 {[%emt 0:10:50]} 10. Ba2 {[%emt 0:11:21]} b5 {[%emt 0:03:06]} 11. Bg5 {[%emt 0:15:21]} Ne6 {[%emt 0:18:23]} 12. Bxf6 {[%emt 0:03:34]} Bxf6 {[%emt 0:00:07]} 13. Ng4 {[%emt 0:01:17]} Bg5 {[%emt 0:02:59]} 14. Nd5 {[%emt 0:09:45]} g6 {[%emt 0:04:23]} 15. Nh2 {[%emt 0:02:49]} Kh8 {[%emt 0:07:21]} 16. c3 {[%emt 0:09:45]} f5 {[%emt 0:00:56]} 17. exf5 {[%emt 0:00:06]} gxf5 {[%emt 0:00:07]} 18. Qc2 {[%emt 0:04:38]} Rb7 {[%emt 0:01:10]} 19. Kh1 {[%emt 0:03:02]} Rg7 {[%emt 0:00:33]} 20. Rg1 {[%emt 0:01:00]} Qe8 {[%emt 0:00:38]} 21. b4 {[%emt 0:03:03]} Bb7 {[%emt 0:01:44]} 22. bxc5 {[%emt 0:01:53]} dxc5 {[%emt 0:00:58]} 23. Rae1 {[%emt 0:01:21]} Nf4 {[%emt 0:01:00]} 24. c4 {[%emt 0:01:55]} bxc4 {[%emt 0:01:32]} 25. dxc4 {[%emt 0:00:08]} e4 {[%emt 0:00:41]} 26. Rb1 {[%emt 0:10:00]} Nd3 {[%emt 0:03:02]} 27. Rgd1 {[%emt 0:02:53]} Bh4 {[%emt 0:02:03]} 28. g3 {[%emt 0:01:36]} Bf6 {[%emt 0:02:32]} 29. Rxd3 {[%emt 0:02:49]} exd3 {[%emt 0:00:10]} 30. Qxd3 {[%emt 0:00:03]} Bd4 {[%emt 0:00:17]} 31. Rf1 {[%emt 0:05:16]} Qh5 {[%emt 0:05:34]} 32. h4 {[%emt 0:04:00]} f4 {[%emt 0:00:24]} 33. Qe4 {[%emt 0:00:59]} fxg3 {[%emt 0:00:39]} 34. fxg3 {[%emt 0:00:10]} Rgf7 {[%emt 0:01:17]} 35. Rxf7 {[%emt 0:01:11]} Rxf7 {[%emt 0:00:44]} 36. Bb1 {[%emt 0:00:29]} Qd1+ {[%emt 0:00:24]} 37. Kg2 {[%emt 0:00:04]} Qg1+ {[%emt 0:11:45]} 38. Kh3 {[%emt 0:00:05]} Qf2 {[%emt 0:00:46]} 39. Qg4 {[%emt 0:01:23]} Rg7 {[%emt 0:00:59]} 40. Qf4 {[%emt 0:00:22]} Bc8+ {[%emt 0:00:11]} 41. g4 {[%emt 0:01:25]} Qxf4 {[%emt 0:01:32]} 42. Nxf4 {[%emt 0:00:02]} Be5 {[%emt 0:00:20]} 43. Nh5 {[%emt 0:02:29]} Rb7 {[%emt 0:00:28]} 44. Be4 {[%emt 0:00:19]} Rb3+ {[%emt 0:00:24]} 45. Nf3 {[%emt 0:00:06]} Rxa3 {[%emt 0:00:43]} 46. Ng3 {[%emt 0:01:11]} Bc7 {[%emt 0:01:48]} 47. h5 {[%emt 0:01:23]} Be6 {[%emt 0:00:49]} 48. Nf5 {[%emt 0:00:25]} Bf4 {[%emt 0:03:01]} 49. Kh4 {[%emt 0:02:05]} h6 {[%emt 0:00:46]} 50. Ne7 {[%emt 0:00:04]} Kg7 {[%emt 0:00:51]} 51. Nd5 {[%emt 0:01:50]} Bxd5 {[%emt 0:00:08]} 52. Bxd5 {[%emt 0:01:02]} a5 {[%emt 0:00:15]} 53. g5 {[%emt 0:00:22]} hxg5+ {[%emt 0:00:20]} 54. Kg4 {[%emt 0:00:28]} a4 {[%emt 0:00:19]} 55. Be4 {[%emt 0:02:32]} Rc3 {[%emt 0:02:11]} 56. Kf5 {[%emt 0:02:01]} Rxf3 {[%emt 0:00:22]} 0-1